bitfinex/quotes_ETHUSD_20241003
["timestamp","ask_amount","ask_price","bid_price","bid_amount"]
[1727933047757,0.3416,2395.3,2394.9,4.2914207]
[1727933047965,0.0875174,2395.0,2394.9,4.57338724]
[1727933048152,0.3416,2395.3,2394.9,4.57338724]
[1727933048358,0.3416,2395.3,2395.1,3.34014]
[1727933048769,7.7316,2395.4,2395.1,7.91317724]
[1727933048946,7.39,2395.4,2395.1,8.71777724]
[1727933049538,7.39,2395.4,2395.2,3.34]
[1727933049734,7.39,2395.4,2395.3,3.33987]
[1727933049938,0.3416,2395.6,2395.3,3.33987]
[1727933052388,0.3416,2395.8,2395.3,4.57282724]
[1727933052546,0.3416,2395.8,2395.5,3.33958]
[1727933052740,0.3416,2395.8,2395.4,3.33972]
[1727933052941,0.3416,2395.8,2395.3,3.9647905]
[1727933053278,0.3416,2395.8,2395.3,7.3045705]
[1727933054044,0.3416,2395.8,2395.3,3.9647005]
[1727933054274,3.68078,2395.8,2395.3,3.9647005]
[1727933054580,3.68078,2395.8,2395.4,0.39647005]
[1727933055146,10.7316,2396.0,2395.5,2.05475724]
[1727933055352,12.21,2396.6,2395.7,4.57213724]
[1727933055353,3.3416,2396.2,2395.7,4.57213724]
[1727933055585,3.3416,2396.2,2395.6,0.24512273]
[1727933055586,3.33887,2396.1,2395.6,0.24512273]
[1727933056091,3.33887,2396.1,2395.6,3.58449273]
[1727933056461,3.33887,2396.1,2395.7,3.33931]
[1727933056971,3.68022,2396.2,2395.7,3.33931]
[1727933057178,3.68022,2396.2,2395.7,4.23718]
[1727933058058,0.07903854,2396.1,2395.7,4.23718]
[1727933060373,0.07903854,2396.1,2395.2,1.68479262]
[1727933060374,3.33916,2395.9,2395.2,1.68479262]
[1727933060695,3.68091,2395.7,2395.2,4.14813]
[1727933061052,0.07650914,2395.6,2395.2,4.14813]
[1727933062242,7.0203,2395.7,2395.2,3.33993]
[1727933062587,0.0764634,2395.6,2395.2,3.33993]
[1727933063985,0.0764634,2395.6,2395.2,4.086303]
[1727933065556,0.3416,2395.5,2395.0,4.1178]
[1727933065865,0.07639021,2395.4,2395.2,3.33999]
[1727933066079,3.68099,2395.7,2395.2,3.33999]
[1727933066274,0.07639021,2395.6,2395.2,3.33999]
[1727933068198,0.07639021,2395.6,2395.3,3.33985]
[1727933068366,0.07639021,2395.6,2395.3,4.07570696]
[1727933068799,0.07639021,2395.6,2395.3,0.73585696]
[1727933069337,0.07639021,2395.6,2395.2,3.33999]
[1727933070910,3.41586021,2395.6,2395.1,3.34015]
[1727933073229,3.41586021,2395.6,2395.0,4.11778]
[1727933073401,3.41586021,2395.6,2395.2,3.34]
[1727933073808,0.07639021,2395.6,2395.2,3.33993]
[1727933074220,0.07639021,2395.6,2395.3,3.33978]
[1727933074422,0.07639021,2395.6,2395.2,3.33993]
[1727933074607,0.07639021,2395.6,2395.2,3.751683]
[1727933074827,0.07639021,2395.6,2395.2,7.091623]
[1727933074999,0.07639021,2395.6,2395.2,3.751683]
[1727933075639,0.07639021,2395.6,2395.2,7.091613]
[1727933076133,0.07639021,2395.6,2395.2,3.751683]
[1727933076847,0.07639021,2395.6,2395.2,7.091593]
[1727933077938,0.07639021,2395.6,2395.4,0.7823]
[1727933078118,0.07639021,2395.6,2395.4,4.12196]
[1727933078449,6.68071,2395.9,2395.4,4.12196]
[1727933078651,0.0737952,2395.5,2395.4,4.12196]
[1727933079121,3.68071,2395.9,2395.4,4.12196]
[1727933079648,0.0737952,2395.8,2395.4,4.12196]
[1727933079855,0.0737952,2395.8,2395.4,4.99136103]
[1727933080421,0.0737952,2395.8,2395.5,1.23219031]
[1727933080757,0.0737952,2395.8,2395.6,3.33942]
[1727933081251,0.0737952,2395.8,2395.5,4.57168031]
[1727933081616,0.0737952,2395.8,2395.5,5.44105634]
[1727933082060,0.0737952,2395.8,2395.7,1.23219031]
[1727933082215,0.0737952,2395.8,2395.7,5.90430031]
[1727933082425,0.3416,2396.7,2396.3,3.33835]
[1727933082611,0.3416,2396.7,2396.4,4.57046031]
[1727933082814,0.06404707,2396.6,2396.4,1.23219031]
[1727933083215,7.017,2396.9,2396.4,1.23219031]
[1727933083417,0.06423461,2396.5,2396.4,1.23219031]
[1727933083617,7.017,2396.9,2396.3,6.82691278]
[1727933083864,3.67924,2396.9,2396.3,10.16531278]
[1727933084157,3.67924,2396.9,2396.3,10.16530278]
[1727933084158,0.06423461,2396.8,2396.3,10.16530278]
[1727933084404,0.06423461,2396.8,2396.3,6.82690278]
[1727933084600,0.06423461,2396.8,2396.3,10.16531278]
[1727933084761,0.06423461,2396.8,2396.3,6.82690278]
[1727933085189,0.06423461,2396.8,2396.3,10.16530278]
[1727933086678,0.06423461,2396.8,2396.3,7.84343306]
[1727933086873,0.06423461,2396.8,2396.4,3.33823]
[1727933087204,0.06423461,2396.8,2396.3,7.84343306]
[1727933087205,0.06423461,2396.8,2396.6,2.66731278]
[1727933087571,3.67904,2397.1,2396.6,2.66731278]
[1727933088201,0.06445864,2397.0,2396.6,6.00537278]
[1727933088978,0.06445864,2397.0,2396.6,2.66731278]
[1727933089714,3.40196864,2397.0,2396.6,2.66731278]
[1727933091007,0.06445864,2397.0,2396.6,2.66731278]
[1727933091175,0.06445864,2397.0,2396.6,3.26785306]
[1727933091581,0.06445864,2397.0,2396.7,0.8208]
[1727933091901,0.3416,2397.4,2396.7,0.8208]
[1727933091902,3.33718,2397.3,2396.8,3.33776]
[1727933092108,3.33718,2397.3,2396.7,0.8208]
[1727933092109,3.40171864,2397.2,2396.7,4.1587]
[1727933092403,3.40171864,2397.2,2396.8,3.34991906]
[1727933099718,0.06445864,2397.2,2396.8,3.34991906]
[1727933100027,0.3416,2397.2,2396.6,3.33794]
[1727933100185,0.3416,2396.8,2396.3,3.33844]
[1727933100389,3.67939,2396.8,2396.3,3.93901528]
[1727933100715,0.06563344,2396.7,2396.3,3.93901528]
[1727933101090,0.065638,2396.6,2396.3,0.60057528]
[1727933101305,3.67939,2396.8,2396.3,0.60057528]
[1727933101492,3.33759,2397.0,2396.3,0.60057528]
[1727933101493,0.065638,2396.7,2396.4,0.8327]
[1727933101711,0.3416,2396.6,2396.3,3.33845]
[1727933101883,0.0655832,2396.5,2396.3,3.33845]
[1727933102376,0.0655832,2396.5,2396.2,2.66731278]
[1727933102580,3.4037932,2396.5,2396.1,3.33874]
[1727933102779,0.0655832,2396.5,2396.1,6.6774]
[1727933102982,0.0655832,2396.5,2396.1,3.33866]
[1727933103204,0.0655832,2396.5,2396.1,3.90531299]
[1727933103394,0.0655832,2396.5,2396.3,3.33844]
[1727933105529,0.0655832,2396.5,2396.2,3.3385]
[1727933106043,3.4037932,2396.5,2396.0,6.67762]
[1727933106328,3.4037932,2396.5,2396.0,3.3388]
[1727933106511,3.4037932,2396.5,2396.1,3.33874]
[1727933106706,0.0655832,2396.5,2396.1,3.33874]
[1727933110501,0.3416,2396.4,2396.1,3.33874]
[1727933110918,0.06504398,2396.3,2396.2,3.33861]
[1727933111485,3.3416,2396.6,2396.2,3.33861]
[1727933111684,0.0650394,2396.5,2396.2,3.33861]
[1727933115824,0.0650394,2396.5,2396.3,3.33847]
[1727933116232,0.0650394,2396.5,2396.3,6.67686]
[1727933116396,0.0650394,2396.5,2396.3,3.33839]
[1727933118400,0.3416,2396.7,2396.3,3.33839]
[1727933118739,10.72766,2396.9,2396.5,3.33818]
[1727933118910,3.67926,2396.9,2396.5,3.33818]
[1727933119311,3.67926,2396.9,2396.4,4.16214]
[1727933122449,3.33778,2396.8,2396.3,3.82329253]
[1727933122616,0.3416,2396.4,2395.9,4.13632]
[1727933122820,0.3416,2396.4,2396.0,3.33886]
[1727933123916,0.3416,2396.4,2396.1,3.33875]
[1727933126654,3.0,2396.5,2396.1,6.67742]
[1727933127008,3.0,2396.5,2396.1,3.33867]
[1727933127549,3.0,2396.5,2396.1,6.67735]
[1727933127717,3.0,2396.5,2396.1,6.67736]
[1727933127902,3.0,2396.5,2396.1,3.33867]
[1727933128629,0.3416,2396.6,2396.2,3.33861]
[1727933133258,0.3416,2396.4,2395.8,0.30680742]
[1727933133462,3.33856,2396.3,2395.8,4.57051069]
[1727933133760,0.06065909,2396.2,2395.8,5.10464176]
[1727933134084,3.68004,2396.4,2396.0,3.33889]
[1727933134289,0.06065909,2396.1,2396.0,4.18324318]
[1727933134486,3.68004,2396.4,2396.0,3.33889]
[1727933135000,0.06065909,2396.3,2396.0,3.33889]
[1727933136919,0.06065909,2396.3,2395.9,4.16102]
[1727933137061,0.06065909,2396.3,2395.9,5.08758618]
[1727933138705,0.06065909,2396.3,2396.0,3.33877]
[1727933139811,0.06065909,2396.3,2395.9,5.08758618]
[1727933140506,0.06065909,2396.3,2395.9,8.42654618]
[1727933141420,0.06065909,2396.3,2396.0,3.33887]
[1727933144445,0.06065909,2396.3,2396.0,4.30465169]
[1727933144951,0.06065909,2396.3,2396.1,3.33874]
[1727933148639,0.06065909,2396.3,2396.0,4.30459169]
[1727933148845,0.06065909,2396.3,2396.0,3.33881]
[1727933149448,0.06065909,2396.3,2395.7,3.33929]
[1727933149449,7.01903,2396.2,2395.7,3.33929]
[1727933149750,7.07948295,2396.2,2395.7,3.33929]
[1727933149936,0.00810782,2395.9,2395.7,3.33929]
[1727933150336,0.06044835,2395.8,2395.7,3.33929]
[1727933151348,0.06044835,2395.8,2395.7,4.29556592]
[1727933151556,0.06044835,2395.8,2395.7,5.52698661]
[1727933151708,0.06044835,2395.8,2395.7,6.28378661]
[1727933151907,0.06044835,2395.8,2395.7,7.15956507]
[1727933154745,0.00810782,2395.9,2395.8,3.33917]
[1727933154913,0.00810782,2395.9,2395.8,4.5205584]
[1727933155108,0.06844164,2395.9,2395.8,4.5205584]
[1727933155314,0.00810782,2395.9,2395.8,4.5205584]
[1727933155938,0.06844164,2395.9,2395.8,4.5205584]
[1727933158628,0.06844164,2395.9,2395.8,5.39633686]
[1727933158818,0.06844164,2395.9,2395.8,4.5205584]
[1727933159242,0.06844164,2395.9,2395.8,5.39633686]
[1727933159686,0.06844164,2395.9,2395.8,6.21793686]
[1727933160455,0.06844164,2395.9,2395.8,6.54323824]
[1727933160660,0.06844164,2395.9,2395.8,6.98234872]
[1727933161204,0.00810782,2396.3,2396.1,3.33863]
[1727933161501,0.00810782,2396.3,2396.1,4.57005069]
[1727933163205,0.06026052,2396.2,2396.1,4.57005069]
[1727933163497,0.00810782,2396.3,2396.1,4.57005069]
[1727933163798,0.06026052,2396.2,2396.1,5.66257465]
[1727933164098,0.00810782,2396.3,2396.1,9.00124465]
[1727933164400,0.00810782,2396.3,2396.2,0.8251]
[1727933170302,0.00810782,2396.3,2396.1,2.32394465]
[1727933170513,0.3416,2396.2,2396.0,0.87661446]
[1727933170825,0.00810782,2396.1,2395.8,4.21575446]
[1727933170960,0.00810782,2396.1,2395.8,0.87661446]
[1727933171759,0.00810782,2396.1,2395.8,4.21577446]
[1727933175411,0.00810782,2396.1,2395.9,1.23142069]
[1727933175583,0.00810782,2396.1,2395.9,4.57044069]
[1727933175913,0.0605125,2396.0,2395.9,4.57044069]
[1727933179075,0.00810782,2396.1,2395.9,4.57044069]
[1727933179302,0.0605125,2396.0,2395.9,4.57044069]
[1727933180181,0.00810782,2396.1,2395.9,4.57044069]
[1727933180529,0.0605125,2396.0,2395.9,4.57044069]
[1727933190538,0.0605125,2396.0,2395.9,5.44705515]
[1727933190715,0.0605125,2396.0,2395.9,4.57044069]
[1727933191412,0.0605125,2396.0,2395.9,1.23142069]
[1727933191613,0.0605125,2396.0,2395.9,3.33903]
[1727933193658,0.00810782,2396.1,2395.9,3.33903]
[1727933193860,0.0588915,2396.0,2395.9,3.33903]
[1727933196131,0.00810782,2396.1,2395.9,3.33903]
[1727933196347,0.0588915,2396.0,2395.9,3.33903]
[1727933197453,0.0588915,2396.0,2395.9,5.6609921]
[1727933197622,0.0588915,2396.0,2395.9,6.53760656]
[1727933203735,0.0588915,2396.0,2395.9,5.6609921]
[1727933204587,0.0588915,2396.0,2395.9,6.53760656]
[1727933204941,0.00810782,2396.3,2395.9,6.53760656]
[1727933205142,0.05688368,2396.0,2395.9,6.53760656]
[1727933205378,0.00810782,2396.3,2395.9,6.53760656]
[1727933205681,0.00810782,2396.3,2395.9,5.6609921]
[1727933205886,0.05688368,2396.2,2395.9,5.6609921]
[1727933206041,0.05688368,2396.2,2395.9,6.53760656]
[1727933206243,0.00810782,2396.3,2395.9,6.53760656]
[1727933206563,0.05688368,2396.2,2395.9,5.6609921]
[1727933206879,0.00810782,2396.3,2395.9,5.6609921]
[1727933207175,0.05688368,2396.1,2395.9,5.6609921]
[1727933207338,0.00810782,2396.3,2395.9,5.6609921]
[1727933207537,0.05688368,2396.0,2395.9,4.57045069]
[1727933207750,0.00810782,2396.1,2395.9,4.57045069]
[1727933207972,0.05688368,2396.0,2395.9,5.44706515]
[1727933208175,0.05688368,2396.0,2395.9,6.32363594]
[1727933208348,0.05688368,2396.0,2395.9,7.72120612]
[1727933208857,0.05498756,2396.0,2395.9,7.72120612]
[1727933209096,0.05498756,2396.0,2395.9,6.84547145]
[1727933209245,0.00810782,2396.3,2395.9,6.84547145]
[1727933209445,0.05498756,2396.0,2395.9,4.57045069]
[1727933209644,0.00810782,2396.3,2395.9,4.57045069]
[1727933209872,0.05498756,2396.2,2395.9,4.57045069]
[1727933210260,0.00810782,2396.3,2395.9,4.57045069]
[1727933210460,0.05498756,2396.1,2395.9,4.57045069]
[1727933210693,0.00810782,2396.3,2395.9,6.23952809]
[1727933210910,0.05498756,2396.0,2395.9,5.44790127]
[1727933211059,0.00810782,2396.3,2395.9,4.57045069]
[1727933211267,0.05498756,2396.0,2395.9,4.21648058]
[1727933211572,0.00810782,2396.3,2395.9,4.21648058]
[1727933212100,0.05498756,2396.2,2396.0,3.3388]
[1727933212266,0.00810782,2396.3,2396.0,3.3388]
[1727933212623,0.05498756,2396.1,2396.0,3.3388]
[1727933212751,0.00810782,2396.3,2396.0,3.3388]
[1727933212951,0.05498756,2396.1,2396.0,3.3388]
[1727933213453,0.00810782,2396.3,2396.0,3.3388]
[1727933213652,0.05498756,2396.1,2396.0,3.3388]
[1727933213853,0.00810782,2396.3,2396.0,3.3388]
[1727933214093,0.05498756,2396.1,2396.0,3.3388]
[1727933214397,0.00810782,2396.3,2396.0,4.22594565]
[1727933214700,0.00810782,2396.3,2396.0,3.3388]
[1727933214894,0.05498756,2396.2,2396.0,3.3388]
[1727933215194,0.00810782,2396.3,2396.0,3.3388]
[1727933215792,0.05498756,2396.2,2396.0,3.3388]
[1727933216302,0.05498756,2396.1,2396.0,3.3388]
[1727933216667,0.00810782,2396.3,2396.0,3.3388]
[1727933216870,0.05498756,2396.1,2396.0,3.3388]
[1727933217166,0.00810782,2396.3,2396.0,3.3388]
[1727933217383,0.05498756,2396.1,2396.0,3.3388]
[1727933217585,0.00810782,2396.3,2396.0,3.3388]
[1727933218086,0.05498756,2396.2,2396.0,3.3388]
[1727933218609,0.00810782,2396.3,2396.0,3.3388]
[1727933219104,0.05315464,2396.2,2396.0,3.3388]
[1727933219738,0.05311341,2396.1,2396.0,3.3388]
[1727933220058,0.00810782,2396.3,2396.0,3.3388]
[1727933220259,0.05311341,2396.1,2395.9,4.21648058]
[1727933220576,0.34970782,2396.1,2395.7,5.02095058]
[1727933220782,0.05311341,2396.0,2395.7,5.02095058]
[1727933221010,0.05311341,2396.0,2395.8,0.87745058]
[1727933221318,0.05311341,2395.9,2395.8,0.87745058]
[1727933221517,0.00810782,2395.9,2395.8,4.21662058]
[1727933221694,0.06119373,2395.9,2395.8,0.87745058]
[1727933222779,0.06119373,2395.9,2395.8,4.21662058]
[1727933228110,0.06119373,2395.9,2395.8,5.48271082]
[1727933228437,0.06119373,2395.9,2395.8,5.92143612]
[1727933229191,0.06119373,2395.9,2395.8,7.04216709]
[1727933229535,0.00810782,2395.9,2395.8,7.47917646]
[1727933230527,0.00810782,2396.3,2396.1,3.33871]
[1727933230915,0.05250239,2396.2,2396.1,3.33871]
[1727933231258,0.00810782,2396.3,2396.1,4.57013069]
[1727933231455,0.39410239,2396.2,2396.0,0.87760985]
[1727933231641,0.39410239,2396.2,2395.9,4.21657985]
[1727933231845,0.00810782,2396.1,2396.0,3.33889]
[1727933232148,0.0607294,2396.1,2396.0,3.33889]
[1727933233058,0.0607294,2396.1,2395.9,4.21657985]
[1727933233254,0.4023294,2396.1,2395.9,4.21657985]
[1727933233453,0.05261241,2396.0,2395.9,4.21657985]
[1727933233662,0.05261241,2396.0,2395.9,3.33897]
[1727933234232,0.05261241,2396.0,2395.9,4.21657985]
[1727933234895,0.05261241,2396.0,2395.9,3.33897]
[1727933235110,0.05261241,2396.0,2395.8,4.21677985]
[1727933235556,0.05261241,2396.0,2395.8,0.87760985]
[1727933235897,3.68063,2395.9,2395.6,0.87760985]
[1727933236104,0.00810782,2395.7,2395.6,0.87760985]
[1727933236514,0.00810782,2395.7,2395.5,0.87760985]
[1727933236679,0.06069273,2395.7,2395.5,0.87760985]
[1727933236868,0.00810782,2395.7,2395.5,0.87760985]
[1727933237271,0.05258491,2395.6,2395.5,4.21717985]
[1727933240477,0.00810782,2395.7,2395.5,4.21717985]
[1727933241024,0.05258491,2395.6,2395.5,4.21717985]
[1727933241321,0.00810782,2395.7,2395.5,4.21717985]
[1727933241492,0.05258491,2395.6,2395.5,4.21717985]
[1727933241819,0.00810782,2395.7,2395.5,4.21717985]
[1727933242362,0.05258491,2395.6,2395.5,4.21717985]
[1727933242726,0.00810782,2395.7,2395.6,4.14415]
[1727933243222,0.060546,2395.7,2395.6,3.33945]
[1727933243421,0.00810782,2395.7,2395.6,3.33945]
[1727933244382,0.00810782,2395.7,2395.6,4.54747202]
[1727933245015,0.00810782,2395.7,2395.6,5.77889271]
[1727933245218,0.00810782,2395.8,2395.6,5.77889271]
[1727933245407,0.00810782,2395.8,2395.7,3.33931]
[1727933253434,0.05727015,2395.8,2395.6,0.87688115]
[1727933254673,0.05727015,2395.8,2395.6,4.21633115]
[1727933254831,0.05727015,2395.8,2395.6,5.48244574]
[1727933255170,0.05727015,2395.8,2395.6,8.82182574]
[1727933255568,0.05727015,2395.8,2395.6,5.48237574]
[1727933255868,0.05727015,2395.8,2395.6,4.21626115]
[1727933256277,0.05727015,2395.8,2395.6,3.33938]
[1727933257735,0.05727015,2395.8,2395.6,6.67876]
[1727933258236,0.39887015,2395.8,2395.6,6.67876]
[1727933258574,0.39887015,2395.8,2395.6,3.33938]
[1727933259244,0.39887015,2395.8,2395.6,6.67877]
[1727933261164,0.39887015,2395.8,2395.6,3.33938]
[1727933261370,0.39887015,2395.8,2395.6,6.67876]
[1727933261671,0.39887015,2395.8,2395.4,4.14432]
[1727933263469,0.39887015,2395.8,2395.4,7.48398]
[1727933264606,0.39887015,2395.8,2395.4,4.14432]
[1727933264828,0.39887015,2395.8,2395.6,3.33945]
[1727933265475,0.05727015,2395.8,2395.6,3.33945]
[1727933265908,0.05727015,2395.8,2395.6,4.57080069]
[1727933266714,0.05727015,2395.8,2395.7,0.8207]
[1727933267073,0.05727015,2395.8,2395.6,7.91018069]
[1727933267421,0.05727015,2395.8,2395.6,6.67876]
[1727933268722,0.05727015,2395.8,2395.6,3.33938]
[1727933268930,0.05727015,2395.8,2395.6,7.49105174]
[1727933269423,0.05727015,2395.8,2395.6,8.36806879]
[1727933269653,0.05727015,2395.8,2395.6,7.49105174]
[1727933272329,0.05727015,2395.8,2395.6,8.36806879]
[1727933273629,0.05727015,2395.8,2395.7,3.33931]
[1727933273932,0.04916233,2395.8,2395.7,6.9972359]
[1727933274287,0.00810782,2396.0,2395.7,6.9972359]
[1727933274629,0.00810782,2396.0,2395.9,3.33903]
[1727933276229,0.34970782,2396.0,2395.9,3.33903]
[1727933280492,0.00810782,2396.0,2395.9,3.33903]
[1727933282220,0.00810782,2396.0,2395.8,4.2160885]
[1727933282387,0.00810782,2396.0,2395.9,3.33903]
[1727933283196,0.05406897,2396.0,2395.9,3.33903]
[1727933285436,0.05406897,2396.0,2395.7,0.8769385]
[1727933285730,0.05406897,2396.0,2395.6,4.2163585]
[1727933286092,0.34970782,2395.8,2395.6,4.2163585]
[1727933286290,0.04601618,2395.7,2395.6,3.33942]
[1727933286532,0.34970782,2395.8,2395.6,3.33942]
[1727933287032,0.04601618,2395.7,2395.6,4.2163585]
[1727933287536,0.04601618,2395.7,2395.6,3.33942]
[1727933287709,0.34970782,2395.8,2395.6,3.33942]
[1727933288034,0.04601618,2395.7,2395.6,4.2163585]
[1727933288339,0.34970782,2395.8,2395.6,4.2163585]
[1727933288509,0.04601618,2395.7,2395.6,4.2163585]
[1727933288712,0.34970782,2395.8,2395.6,3.33942]
[1727933288917,0.04601618,2395.7,2395.6,3.33942]
[1727933289101,0.34970782,2395.8,2395.6,3.33942]
[1727933289435,0.04601618,2395.7,2395.6,3.33942]
[1727933290237,0.34970782,2395.8,2395.6,4.2163585]
[1727933290399,0.04601618,2395.7,2395.6,3.33942]
[1727933290738,0.04601618,2395.7,2395.6,4.2163585]
[1727933290938,0.00810782,2395.8,2395.6,4.2163585]
[1727933291257,0.04591071,2395.7,2395.6,4.2163585]
[1727933291536,0.00810782,2395.8,2395.6,4.2163585]
[1727933291739,0.04591071,2395.7,2395.6,4.2163585]
[1727933292031,0.00810782,2395.8,2395.6,4.2163585]
[1727933292199,0.04591071,2395.7,2395.6,4.2163585]
[1727933292399,0.00810782,2395.8,2395.6,4.2163585]
[1727933292613,0.04591071,2395.7,2395.6,4.2163585]
[1727933293139,0.00810782,2395.8,2395.6,4.2163585]
[1727933293337,0.04591071,2395.7,2395.6,4.2163585]
[1727933293840,0.00810782,2395.8,2395.6,4.2163585]
[1727933294137,0.04591071,2395.7,2395.6,4.2163585]
[1727933294339,0.00810782,2395.8,2395.6,4.2163585]
[1727933294650,0.04591071,2395.7,2395.6,4.2163585]
[1727933294847,0.04591071,2395.7,2395.6,5.30890898]
[1727933295076,0.00810782,2395.8,2395.7,3.33931]
[1727933295778,0.00810782,2395.8,2395.6,4.2163885]
[1727933295982,0.00810782,2395.8,2395.7,3.33931]
[1727933296134,0.00810782,2395.8,2395.7,4.13961]
[1727933297481,0.00810782,2395.8,2395.7,3.33931]
[1727933298578,0.05391765,2395.8,2395.6,4.2163685]
[1727933298877,0.00810782,2395.8,2395.6,5.48491639]
[1727933299044,0.04580983,2395.7,2395.6,5.48491639]
[1727933299477,0.00810782,2395.8,2395.6,5.48491639]
[1727933299650,0.04580983,2395.7,2395.6,5.48491639]
[1727933300048,0.00810782,2395.8,2395.6,5.48491639]
[1727933300254,0.04580983,2395.7,2395.6,5.48491639]
[1727933300563,0.00810782,2395.8,2395.6,5.48491639]
[1727933300742,0.04580983,2395.7,2395.6,5.48491639]
[1727933300944,0.00810782,2395.8,2395.6,5.48491639]
[1727933301282,0.04580983,2395.7,2395.6,5.48491639]
[1727933301642,0.00810782,2395.8,2395.6,5.48491639]
[1727933301843,0.04579607,2395.7,2395.6,5.48491639]
[1727933302385,0.04579607,2395.7,2395.6,0.8769385]
[1727933302611,0.00810782,2395.8,2395.5,5.0450185]
[1727933302825,0.04579607,2395.7,2395.5,5.0450185]
[1727933303216,0.00810782,2395.8,2395.5,5.0450185]
[1727933303713,0.04579607,2395.7,2395.5,5.0450185]
[1727933304013,0.00810782,2395.8,2395.5,5.0450185]
[1727933304185,0.04579607,2395.6,2395.5,5.0450185]
[1727933304510,0.00810782,2395.8,2395.5,5.0450185]
[1727933305072,0.04579607,2395.7,2395.5,5.0450185]
[1727933305508,0.00810782,2395.8,2395.5,5.0450185]
[1727933306921,0.00810782,2395.8,2395.6,4.2163185]
[1727933307273,0.00810782,2395.8,2395.6,0.8769385]
[1727933307525,0.00810782,2395.8,2395.6,4.2163785]
[1727933308681,0.00810782,2395.8,2395.6,0.8769385]
[1727933311820,0.00810782,2395.8,2395.7,3.33931]
[1727933312843,0.00810782,2395.8,2395.7,5.07868841]
[1727933313152,0.00810782,2395.8,2395.7,6.39421399]
[1727933313153,0.05389932,2395.8,2395.7,6.39421399]
[1727933313833,0.05389932,2395.8,2395.7,6.71949859]
[1727933314233,0.05389932,2395.8,2395.7,6.39421399]
[1727933314621,0.05389932,2395.8,2395.7,7.15799849]
[1727933315648,0.05389932,2395.8,2395.7,5.40396438]
[1727933315823,0.05389932,2395.8,2395.7,7.15799849]
[1727933316331,0.05389932,2395.8,2395.7,5.40396438]
[1727933316533,0.05389932,2395.8,2395.7,7.15799849]
[1727933318137,0.05389932,2395.8,2395.7,7.22091664]
[1727933318325,0.05389932,2395.8,2395.7,7.15799849]
[1727933319829,0.05389932,2395.8,2395.7,5.40396438]
[1727933320283,0.05389932,2395.8,2395.7,6.71920738]
[1727933320768,0.05389932,2395.8,2395.7,6.393938]
[1727933324835,0.05389932,2395.8,2395.7,4.65455959]
[1727933325064,0.0457915,2395.8,2395.6,4.21616536]
[1727933325292,0.05389932,2395.8,2395.6,4.21616536]
[1727933325461,0.05389932,2395.8,2395.6,3.33943]
[1727933332853,0.05389932,2395.8,2395.6,0.87673536]
[1727933333155,0.05389932,2395.8,2395.5,4.21631536]
[1727933334052,0.05389932,2395.8,2395.6,3.33944]
[1727933338618,0.05389932,2395.8,2395.6,4.21617536]
[1727933340733,0.05389932,2395.8,2395.6,3.33944]
[1727933341445,0.05389932,2395.8,2395.6,6.67882]
[1727933341646,0.05389932,2395.8,2395.6,4.21611536]
[1727933342137,0.05389932,2395.8,2395.7,5.36273069]
[1727933342484,0.0457915,2395.8,2395.7,6.30744889]
[1727933342628,0.0457915,2395.8,2395.7,6.67798028]
[1727933342833,0.00810782,2396.0,2395.9,3.33903]
[1727933343261,0.05113101,2396.0,2395.9,3.33903]
[1727933343461,0.00810782,2396.0,2395.9,3.33903]
[1727933344000,0.05121811,2396.0,2395.9,3.33903]
[1727933344182,0.00810782,2396.0,2395.9,3.33903]
[1727933344355,0.05135108,2396.0,2395.9,3.33903]
[1727933345274,0.05135108,2396.0,2395.9,4.57045069]
[1727933346983,0.05135108,2396.0,2395.8,0.87680303]
[1727933347288,0.05135108,2396.0,2395.7,6.23942372]
[1727933347591,0.05135108,2396.0,2395.7,0.87680303]
[1727933347791,0.3416,2395.9,2395.7,0.87680303]
[1727933348099,0.3416,2395.9,2395.6,4.21618303]
[1727933348265,0.04326618,2395.8,2395.6,4.21618303]
[1727933348595,0.051374,2395.8,2395.6,0.87680303]
[1727933348892,0.051374,2395.8,2395.7,3.33931]
[1727933362443,0.051374,2395.8,2395.7,4.21611303]
[1727933362589,0.051374,2395.8,2395.7,5.39504466]
[1727933363406,0.051374,2395.8,2395.7,4.51824163]
[1727933364327,0.051374,2395.8,2395.7,5.39504466]
[1727933365432,0.051374,2395.8,2395.7,4.21611303]
[1727933368550,0.04326618,2395.8,2395.7,7.1230648]
[1727933368702,0.04326618,2395.8,2395.7,7.44834277]
[1727933369026,0.00810782,2396.3,2396.0,3.33883]
[1727933369232,0.00810782,2396.3,2396.0,6.11543104]
[1727933369399,0.00810782,2396.3,2396.0,5.44763804]
[1727933370968,0.00810782,2396.3,2396.0,6.27753804]
[1727933371272,0.00810782,2396.3,2396.0,6.27748804]
[1727933372857,0.00810782,2396.3,2396.0,4.57020069]
[1727933373026,0.00810782,2396.3,2396.0,3.33878]
[1727933373228,0.04185148,2396.2,2396.0,4.57020069]
[1727933373545,0.00810782,2396.3,2396.0,4.57020069]
[1727933373856,0.04185148,2396.2,2396.0,4.57020069]
[1727933374162,0.00810782,2396.3,2396.0,4.57020069]
[1727933374542,0.04185148,2396.2,2396.0,4.57020069]
[1727933374741,0.00810782,2396.3,2396.0,4.57020069]
[1727933375143,0.04185148,2396.2,2396.1,1.23142069]
[1727933375356,0.00810782,2396.3,2396.1,1.23142069]
[1727933375534,0.04185148,2396.2,2396.1,1.23142069]
[1727933375733,0.00810782,2396.3,2396.1,1.23142069]
[1727933375935,0.04185148,2396.2,2396.1,1.23142069]
[1727933376180,0.00810782,2396.3,2396.1,1.23142069]
[1727933376375,0.04185148,2396.2,2396.1,1.23142069]
[1727933376581,0.00810782,2396.3,2396.1,1.23142069]
[1727933376754,0.04185148,2396.2,2396.1,1.23142069]
[1727933376944,0.00810782,2396.3,2396.1,1.23142069]
[1727933377139,0.04185148,2396.2,2396.1,1.23142069]
[1727933377442,0.00810782,2396.3,2396.1,1.23142069]
[1727933377643,0.04185148,2396.2,2396.1,1.23142069]
[1727933378080,0.00810782,2396.3,2396.1,1.23142069]
[1727933378279,0.04185148,2396.2,2396.1,1.23142069]
[1727933378725,0.00810782,2396.3,2396.1,1.23142069]
[1727933378919,0.04185148,2396.2,2396.1,1.23142069]
[1727933379212,0.00810782,2396.3,2396.1,1.23142069]
[1727933379420,0.04185148,2396.2,2396.1,1.23142069]
[1727933379927,0.00810782,2396.3,2396.1,1.23142069]
[1727933380106,0.04185148,2396.2,2396.1,1.23142069]
[1727933380808,0.00810782,2396.3,2396.1,1.23142069]
[1727933381121,0.04185148,2396.2,2396.1,1.23142069]
[1727933381431,0.00810782,2396.3,2396.1,1.23142069]
[1727933381580,0.04185148,2396.2,2396.1,1.23142069]
[1727933381918,0.00810782,2396.3,2396.1,1.23142069]
[1727933382084,0.04185148,2396.2,2396.1,1.23142069]